bitfinex/quotes_BTCUSD_20251117
["timestamp","ask_amount","ask_price","bid_price","bid_amount"]
[1763388351335,0.01943697,94301.0,94269.0,0.01721402]
[1763388351563,0.03191742,94305.0,94270.0,0.00062841]
[1763388351564,0.01943697,94300.0,94270.0,0.00062841]
[1763388351774,0.01943697,94299.0,94270.0,0.00062841]
[1763388352008,0.01943697,94299.0,94271.0,0.09294924]
[1763388352239,0.01943697,94298.0,94272.0,0.0006284]
[1763388352454,0.01943697,94297.0,94272.0,0.0006284]
[1763388352674,0.01943697,94296.0,94273.0,0.08443]
[1763388352903,0.01943697,94295.0,94274.0,0.00062902]
[1763388353125,0.03191742,94305.0,94273.0,0.07143]
[1763388353126,0.01943697,94294.0,94273.0,0.07143]
[1763388353342,0.01943697,94293.0,94273.0,0.07143]
[1763388353563,0.01943697,94292.0,94273.0,0.07143]
[1763388353779,0.01943697,94291.0,94273.0,0.07143]
[1763388353997,0.01943697,94290.0,94273.0,0.07143]
[1763388354452,0.01943697,94290.0,94274.0,0.008549]
[1763388354741,0.01943697,94290.0,94289.0,0.06494]
[1763388355451,0.01943697,94290.0,94289.0,0.13628]
[1763388356330,0.01943697,94290.0,94271.0,0.01406]
[1763388356331,0.01943697,94290.0,94272.0,0.07143]
[1763388356742,0.323,94281.0,94272.0,0.07143]
[1763388356962,0.01943697,94280.0,94272.0,0.07143]
[1763388357622,0.323,94281.0,94272.0,0.07143]
[1763388358445,0.323,94281.0,94280.0,0.05283]
[1763388359170,0.323,94289.0,94272.0,0.07343]
[1763388359387,0.32313227,94289.0,94272.0,0.07343]
[1763388359576,0.00013227,94289.0,94273.0,0.008749]
[1763388359811,0.00013227,94289.0,94274.0,0.05643]
[1763388360023,0.32313227,94289.0,94280.0,0.001]
[1763388360395,0.32313227,94289.0,94271.0,0.01406]
[1763388360603,0.323,94280.0,94271.0,0.01406]
[1763388360916,0.323,94280.0,94272.0,0.001]
[1763388362108,0.323,94280.0,94246.0,0.05643]
[1763388362109,0.0494,94273.0,94246.0,0.05643]
[1763388362350,0.02651703,94279.0,94252.0,0.06179543]
[1763388362351,0.0264654,94279.0,94252.0,0.06179543]
[1763388362550,0.323,94260.0,94252.0,0.05643]
[1763388362761,0.323,94260.0,94251.0,0.04657]
[1763388362940,0.02652266,94259.0,94251.0,0.04657]
[1763388363145,0.323,94260.0,94251.0,0.04657]
[1763388363354,0.3724,94258.0,94229.0,0.05643]
[1763388363558,0.323,94238.0,94229.0,0.05643]
[1763388363784,0.323,94238.0,94230.0,0.00309674]
[1763388363997,0.323,94238.0,94229.0,0.00013242]
[1763388364211,0.421338,94238.0,94229.0,0.00013242]
[1763388365249,0.98337996,94239.0,94229.0,0.00013242]
[1763388365454,0.02652857,94238.0,94229.0,0.00013242]
[1763388365903,0.02652857,94238.0,94237.0,0.05643]
[1763388366070,0.323,94239.0,94237.0,0.05643]
[1763388366278,0.03681878,94277.0,94238.0,0.03755198]
[1763388366482,0.07449927,94295.0,94238.0,0.03755198]
[1763388366483,0.66037996,94270.0,94239.0,0.10461838]
[1763388366883,0.66037996,94280.0,94254.0,0.10416178]
[1763388367083,0.12200037,94301.0,94255.0,0.01041618]
[1763388367356,0.66037996,94270.0,94240.0,0.00999999]
[1763388368313,0.03192037,94301.0,94240.0,0.00999999]
[1763388368314,0.323,94269.0,94240.0,0.00999999]
[1763388368500,0.66037996,94280.0,94240.0,0.00999999]
[1763388368698,0.66037996,94270.0,94240.0,0.00999999]
[1763388368903,0.13948,94290.0,94240.0,0.00999999]
[1763388368904,0.323,94259.0,94240.0,0.00999999]
[1763388369113,0.323,94259.0,94241.0,0.10416178]
[1763388369317,0.323,94259.0,94242.0,0.01141618]
[1763388370188,0.323,94279.0,94243.0,0.10416178]
[1763388370390,0.323,94269.0,94243.0,0.10416178]
[1763388371653,0.04341874,94289.0,94242.0,0.002]
[1763388371654,0.323,94252.0,94242.0,0.002]
[1763388372635,0.323,94252.0,94226.0,0.00316876]
[1763388372868,0.323,94259.0,94235.0,0.10416178]
[1763388373091,0.323,94259.0,94243.0,0.001]
[1763388373319,0.04341874,94289.0,94226.0,0.00316876]
[1763388373320,0.323,94249.0,94226.0,0.00316876]
[1763388374254,0.323,94249.0,94242.0,0.002]
[1763388374483,0.3231322,94249.0,94242.0,0.002]
[1763388374922,0.0001322,94249.0,94242.0,0.002]
[1763388375830,0.0001322,94249.0,94228.0,0.01193242]
[1763388376080,0.0001322,94249.0,94231.0,0.10416178]
[1763388376304,0.0001322,94249.0,94232.0,0.0119263]
[1763388376742,0.3231322,94249.0,94232.0,0.0119263]
[1763388376962,0.3231322,94249.0,94228.0,0.01193242]
[1763388377168,0.3231322,94249.0,94231.0,0.10416178]
[1763388377678,0.3231322,94249.0,94232.0,0.001]
[1763388377940,0.01945815,94248.0,94232.0,0.001]
[1763388378149,0.01945815,94247.0,94233.0,0.00106106]
[1763388378359,0.01945815,94246.0,94234.0,0.01171553]
[1763388378567,0.01945815,94245.0,94234.0,0.01171553]
[1763388378768,0.0001322,94249.0,94234.0,0.01171553]
[1763388378769,0.01945815,94244.0,94234.0,0.01171553]
[1763388378968,0.0001322,94249.0,94234.0,0.01171553]
[1763388379170,0.01945732,94248.0,94234.0,0.01171553]
[1763388379381,0.01945732,94247.0,94235.0,0.01344172]
[1763388379595,0.01945732,94247.0,94232.0,0.001]
[1763388379596,0.0001322,94249.0,94232.0,0.001]
[1763388380435,0.323,94241.0,94232.0,0.001]
[1763388380655,0.323,94241.0,94228.0,0.01193242]
[1763388381084,0.323,94239.0,94234.0,0.002]
[1763388381295,0.06630191,94238.0,94234.0,0.002]
[1763388381507,0.04448,94235.0,94234.0,0.002]
[1763388381747,0.04448,94235.0,94228.0,0.01193242]
[1763388381981,0.0265297,94234.0,94228.0,0.01193242]
[1763388382201,0.323,94237.0,94232.0,0.002]
[1763388382628,0.323,94237.0,94228.0,0.01193242]
[1763388383018,0.16641023,94237.0,94228.0,0.01193242]
[1763388383390,0.66037996,94240.0,94228.0,0.01193242]
[1763388383730,0.02114965,94239.0,94228.0,0.01193242]
[1763388383941,0.04341874,94238.0,94228.0,0.01193242]
[1763388384147,0.04341874,94236.0,94226.0,0.00316876]
[1763388384281,0.04341874,94234.0,94226.0,0.00316876]
[1763388384483,0.04341874,94232.0,94226.0,0.00316876]
[1763388384698,0.04341874,94230.0,94226.0,0.00316876]
[1763388384896,0.02114965,94229.0,94226.0,0.00316876]
[1763388385137,0.04341874,94235.0,94226.0,0.00316876]
[1763388385343,0.04341874,94233.0,94226.0,0.00316876]
[1763388385527,0.02114965,94232.0,94226.0,0.00316876]
[1763388386568,0.42703874,94227.0,94226.0,0.00316876]
[1763388387550,0.323,94227.0,94226.0,0.00316876]
[1763388388563,0.66037996,94236.0,94226.0,0.00316876]
[1763388388933,0.02114965,94235.0,94226.0,0.00316876]
[1763388389158,0.02114965,94237.0,94226.0,0.00416876]
[1763388389368,0.02114965,94237.0,94226.0,0.00316876]
[1763388389579,0.02114965,94238.0,94226.0,0.00316876]
[1763388389787,0.323,94239.0,94226.0,0.00316876]
[1763388389788,0.06062,94227.0,94226.0,0.00316876]
[1763388390803,0.06456839,94232.0,94226.0,0.00316876]
[1763388390943,0.06456839,94232.0,94226.0,0.00416876]
[1763388391427,0.06062,94227.0,94226.0,0.00316876]
[1763388391628,0.5144683,94227.0,94226.0,0.00316876]
[1763388391917,0.49433452,94227.0,94226.0,0.00416876]
[1763388392120,0.49433452,94227.0,94226.0,0.00316876]
[1763388392327,0.34244452,94227.0,94226.0,0.00316876]
[1763388393066,0.34244395,94227.0,94226.0,0.00316876]
[1763388393526,0.01944395,94227.0,94226.0,0.00316876]
[1763388394266,0.01944395,94227.0,94226.0,0.00416876]
[1763388394652,0.01944395,94227.0,94226.0,0.00316876]
[1763388394934,0.01944395,94227.0,94226.0,0.00416876]
[1763388395160,0.01944395,94227.0,94226.0,0.00316876]
[1763388395593,0.01944395,94227.0,94226.0,0.00416876]
[1763388395812,0.0405936,94227.0,94226.0,0.00416876]
[1763388395927,0.1012136,94227.0,94226.0,0.00316876]
[1763388396439,0.1924836,94227.0,94226.0,0.00316876]
[1763388396845,0.23639246,94227.0,94226.0,0.00316876]
[1763388397048,0.21524281,94227.0,94226.0,0.00316876]
[1763388397256,0.04341874,94226.0,94220.0,0.0004]
[1763388397459,0.42703874,94221.0,94220.0,0.0004]
[1763388397723,0.42703874,94221.0,94171.0,0.02323796]
[1763388397724,0.36641874,94220.0,94171.0,0.02323796]
[1763388397878,0.47333874,94212.0,94171.0,0.02323796]
[1763388398105,0.49278269,94212.0,94172.0,0.02123773]
[1763388398451,0.38874395,94212.0,94172.0,0.02123773]
[1763388398930,0.38880003,94212.0,94172.0,0.02123773]
[1763388399156,0.38878542,94212.0,94172.0,0.02123773]
[1763388399373,0.34248542,94212.0,94172.0,0.02123773]
[1763388400471,0.34248542,94212.0,94171.0,0.002]
[1763388401309,0.34248542,94212.0,94166.0,0.10416178]
[1763388401310,0.323,94211.0,94166.0,0.09796178]
[1763388401538,0.323,94199.0,94167.0,0.01470381]
[1763388401759,0.01942934,94198.0,94167.0,0.01470381]
[1763388402175,0.66037996,94190.0,94167.0,0.01470381]
[1763388402387,0.01942934,94189.0,94167.0,0.01470381]
[1763388402590,0.01942934,94189.0,94166.0,0.09796178]
[1763388402591,0.01942934,94189.0,94168.0,0.01127556]
[1763388402802,0.01942934,94189.0,94160.0,0.0004]
[1763388403015,0.01942934,94189.0,94167.0,0.10416178]
[1763388403225,0.66037996,94190.0,94168.0,0.02123863]
[1763388403226,0.01942934,94188.0,94168.0,0.02123863]
[1763388403428,0.323,94179.0,94167.0,0.001]
[1763388403638,0.323,94179.0,94169.0,0.10416178]
[1763388403639,0.01942934,94178.0,94169.0,0.10416178]
[1763388403845,0.01942934,94178.0,94170.0,0.02123818]
[1763388404041,0.01942934,94178.0,94177.0,0.00137037]
[1763388404659,0.01942934,94178.0,94177.0,0.00181206]
[1763388404859,0.0361677,94178.0,94177.0,0.00181206]
[1763388405063,0.01942934,94178.0,94177.0,0.00181206]
[1763388405272,0.323,94189.0,94177.0,0.00181206]
[1763388405273,0.01942934,94188.0,94177.0,0.00181206]
[1763388405529,0.04057899,94187.0,94177.0,0.00044169]
[1763388405748,0.42992,94178.0,94177.0,0.00044169]
[1763388405958,0.44934934,94178.0,94177.0,0.00044169]
[1763388406172,0.54111116,94178.0,94177.0,0.00044169]
[1763388406388,0.59473046,94178.0,94177.0,0.00044169]
[1763388406603,0.6381492,94178.0,94177.0,0.00044169]
[1763388406827,0.6381492,94178.0,94161.0,9e-05]
[1763388406828,0.36641874,94177.0,94161.0,9e-05]
[1763388407037,0.36641874,94170.0,94161.0,0.00022245]
[1763388407243,0.06062,94162.0,94161.0,0.00022245]
[1763388407447,0.08004934,94162.0,94161.0,0.00022245]
[1763388407657,0.42419899,94162.0,94161.0,0.00022245]
[1763388407890,0.40304934,94162.0,94161.0,0.00022245]
[1763388408330,0.49431934,94162.0,94161.0,0.00022245]
[1763388409575,0.34242934,94162.0,94161.0,0.00022245]
[1763388409988,0.49431934,94162.0,94161.0,0.00022245]
[1763388410196,0.49431934,94162.0,94140.0,0.0004]
[1763388410197,0.323,94149.0,94140.0,0.0004]
[1763388410428,0.04057899,94148.0,94140.0,0.00053236]
[1763388410651,0.01942934,94147.0,94140.0,0.00053236]
[1763388410858,0.01942934,94146.0,94140.0,0.00053236]
[1763388411068,0.01942934,94145.0,94140.0,0.00053236]
[1763388411274,0.04057899,94144.0,94140.0,0.00053236]
[1763388411489,0.06062,94141.0,94140.0,0.00053236]
[1763388411715,0.42419899,94141.0,94140.0,0.00053236]
[1763388411934,0.40304934,94141.0,94140.0,0.00053236]
[1763388412807,0.34242934,94141.0,94140.0,0.00053236]
[1763388413252,0.52856227,94141.0,94140.0,0.00053236]
[1763388413460,0.53823003,94141.0,94140.0,0.00053236]
[1763388413668,0.53823003,94141.0,94080.0,0.06549414]
[1763388413669,0.323,94109.0,94080.0,0.06549414]
[1763388413871,0.01942934,94108.0,94080.0,0.06593642]
[1763388414072,0.01942934,94107.0,94081.0,0.00659364]
[1763388414285,0.01942934,94106.0,94081.0,0.00659364]
[1763388414495,0.01942934,94105.0,94081.0,0.00659364]
[1763388414717,0.01942934,94104.0,94081.0,0.00659364]
[1763388414927,0.01942934,94103.0,94082.0,0.02007139]
[1763388415130,0.01942934,94102.0,94083.0,0.01046014]
[1763388415346,0.01942934,94101.0,94084.0,0.02007096]
[1763388415596,0.01942934,94100.0,94084.0,0.02007096]
[1763388415817,0.01942934,94099.0,94084.0,0.02007096]
[1763388415988,0.01942934,94098.0,94095.0,0.10416178]
[1763388416217,0.01942934,94097.0,94096.0,0.01041618]
[1763388416852,0.01942934,94097.0,94095.0,0.10416178]
[1763388417070,0.01942934,94096.0,94095.0,0.10416178]
[1763388417275,0.01942934,94096.0,94095.0,0.10616178]
[1763388417468,0.01942934,94096.0,94095.0,0.10982704]
[1763388417676,0.01942934,94096.0,94095.0,0.10782704]
[1763388417811,0.01942934,94096.0,94095.0,0.11860974]
[1763388417999,0.01942934,94096.0,94095.0,0.01444796]
[1763388418200,0.01942934,94096.0,94095.0,0.00366526]
[1763388419712,0.01942934,94096.0,94095.0,0.00566526]
[1763388419908,0.01942934,94096.0,94095.0,0.00366526]
[1763388420537,0.323,94119.0,94095.0,0.00366526]
[1763388420778,0.01929358,94118.0,94096.0,0.10416178]
[1763388421029,0.01929358,94117.0,94096.0,0.10416178]
[1763388421218,0.01929358,94116.0,94080.0,0.00044228]
[1763388421496,0.02114965,94118.0,94080.0,0.00044228]
[1763388421497,0.323,94099.0,94080.0,0.00044228]
[1763388421719,0.01929358,94098.0,94080.0,0.00044228]
[1763388421930,0.01929358,94097.0,94080.0,0.00044228]
[1763388422153,0.12296296,94096.0,94080.0,0.00044228]
[1763388422365,0.323,94089.0,94080.0,0.00044228]
[1763388422566,0.323,94089.0,94040.0,0.0004]
[1763388422567,0.01929358,94088.0,94040.0,0.01013369]
[1763388422699,0.323,94089.0,94061.0,0.10416178]
[1763388422700,0.01929358,94087.0,94061.0,0.10416178]
[1763388422905,0.01929358,94086.0,94044.0,0.10429433]
[1763388423281,0.323,94069.0,94045.0,0.10366938]
[1763388423491,0.01929358,94068.0,94044.0,0.00013255]
[1763388423650,0.01929358,94067.0,94044.0,0.00013255]
[1763388423845,0.01929358,94066.0,94044.0,0.00013255]
[1763388424054,0.01929358,94065.0,94061.0,0.001]
[1763388424262,0.01929358,94064.0,94061.0,0.001]
[1763388424496,0.323,94079.0,94047.0,0.04341874]
[1763388424497,0.01929358,94063.0,94047.0,0.04341874]
[1763388424696,0.323,94079.0,94047.0,0.04341874]
[1763388424697,0.323,94079.0,94062.0,0.10416178]
[1763388424907,0.0192703,94078.0,94077.0,0.10416178]
[1763388425111,0.002,94119.0,94077.0,0.14758052]
[1763388425326,0.002,94119.0,94094.0,0.10416178]
[1763388425327,0.0192794,94117.0,94094.0,0.10416178]
[1763388425525,0.0192794,94116.0,94095.0,0.01842017]
[1763388425748,0.0192794,94115.0,94082.0,0.04341874]
[1763388425959,0.0192794,94115.0,94096.0,0.10416178]
[1763388425960,0.0192794,94114.0,94096.0,0.10416178]
[1763388426171,0.97079315,94110.0,94083.0,0.10366938]
[1763388426379,0.323,94099.0,94064.0,0.04341874]
[1763388426596,0.323,94099.0,94089.0,0.10416178]
[1763388426597,0.0192794,94098.0,94089.0,0.10416178]
[1763388426806,0.323,94099.0,94089.0,0.10416178]
[1763388426807,0.0192794,94097.0,94090.0,0.02001427]
[1763388427014,0.0192794,94096.0,94091.0,0.01241761]
[1763388427226,0.0192794,94095.0,94092.0,0.02108721]
[1763388427429,0.0192794,94094.0,94092.0,0.02108721]
[1763388427634,0.0192794,94093.0,94089.0,0.10416178]
[1763388427837,0.0192794,94092.0,94089.0,0.002]
[1763388428037,0.0192794,94091.0,94089.0,0.002]
[1763388428240,0.0192794,94090.0,94081.0,0.02002665]
[1763388428440,0.0192794,94089.0,94080.0,0.00999999]
[1763388428640,0.0004405,94115.0,94081.0,0.01316148]
[1763388428850,0.01930426,94114.0,94081.0,0.01316148]
[1763388429053,0.01930426,94113.0,94081.0,0.01316148]
[1763388429257,0.01930426,94113.0,94074.0,0.07819608]
[1763388429258,0.0002663,94100.0,94074.0,0.07819608]
[1763388429504,0.01930426,94099.0,94074.0,0.07819608]
[1763388429706,0.01930426,94098.0,94060.0,0.00973369]
[1763388430044,0.01930426,94097.0,94075.0,0.10416178]
[1763388430244,0.01930426,94096.0,94075.0,0.11457796]
[1763388430366,0.01930426,94095.0,94089.0,0.002]
[1763388430568,0.01930426,94094.0,94089.0,0.002]
[1763388430864,0.323,94099.0,94089.0,0.002]
[1763388430865,0.01930426,94093.0,94089.0,0.002]
[1763388431037,0.01930426,94092.0,94089.0,0.002]
[1763388431232,0.0002663,94090.0,94050.0,0.00999999]
[1763388431483,0.34230426,94089.0,94050.0,0.00999999]
[1763388431680,0.01930426,94088.0,94060.0,0.002]
[1763388431891,0.323,94079.0,94060.0,0.002]
[1763388432102,0.01930426,94078.0,94060.0,0.002]
[1763388432265,0.323,94079.0,94040.0,0.0004]
[1763388432266,0.323,94069.0,94040.0,0.0004]
[1763388432470,0.01930426,94068.0,94042.0,0.10416178]
[1763388432666,0.01930426,94067.0,94042.0,0.10416178]
[1763388432873,0.01930426,94066.0,94042.0,0.10416178]
[1763388433074,0.01930426,94065.0,94043.0,0.01212248]
[1763388433314,0.01930426,94065.0,94042.0,0.00013255]
[1763388433315,0.323,94059.0,94042.0,0.00013255]
[1763388433531,0.01930426,94058.0,94042.0,0.00013255]
[1763388433732,0.01930426,94057.0,94042.0,0.00013255]
[1763388433934,0.323,94059.0,94042.0,0.00013255]
[1763388433935,0.323,94055.0,94042.0,0.00013255]
[1763388434080,0.0002663,94050.0,94042.0,0.00013255]
[1763388434296,0.01936232,94049.0,94042.0,0.00013255]
[1763388434519,0.01936232,94048.0,94043.0,0.001]
[1763388434716,0.01936232,94047.0,94042.0,0.00013255]
[1763388434921,0.0002663,94050.0,94042.0,0.00013255]
[1763388434922,0.01936232,94046.0,94042.0,0.00013255]
[1763388435121,0.01936232,94045.0,94042.0,0.00113255]
[1763388435319,0.01936232,94044.0,94042.0,0.00113255]
[1763388435549,0.0268479,94050.0,94042.0,0.00113255]
[1763388435550,0.01936232,94043.0,94042.0,0.00113255]
[1763388436113,0.01936232,94043.0,94042.0,0.00013255]
[1763388439564,0.01936232,94043.0,94042.0,0.00113255]
[1763388439769,0.01936232,94043.0,94042.0,0.00013255]
[1763388440177,0.01936232,94043.0,94042.0,0.00213255]
[1763388440652,0.01936232,94043.0,94016.0,0.10416178]
[1763388440869,0.00724375,94050.0,94017.0,0.01142955]
[1763388440870,0.01936232,94042.0,94017.0,0.01142955]
[1763388441052,0.01936232,94041.0,94017.0,0.01142955]
[1763388441251,0.01936232,94040.0,94018.0,0.10416178]
[1763388441480,0.01936232,94040.0,94016.0,0.00011236]
[1763388441481,0.01936232,94039.0,94016.0,0.00011236]
[1763388441674,0.323,94029.0,94016.0,0.00011236]
[1763388441806,0.01936232,94028.0,94016.0,0.00011236]
[1763388442007,0.01936232,94027.0,94017.0,0.10416178]
[1763388442208,0.01936232,94026.0,94018.0,0.01020987]
[1763388442579,0.04595099,94025.0,94016.0,0.00011236]
[1763388442732,0.01936232,94024.0,94016.0,0.00011236]
[1763388442934,0.04595155,94023.0,94016.0,0.00011236]
[1763388443172,0.05687758,94022.0,94016.0,0.00011236]
[1763388443400,0.04341874,94020.0,94018.0,0.002]
[1763388443579,0.04595269,94019.0,94018.0,0.002]
[1763388443915,0.55794143,94019.0,94018.0,0.002]
[1763388444124,0.38627023,94019.0,94018.0,0.002]
[1763388444328,0.34236232,94019.0,94018.0,0.002]
[1763388444545,0.01936232,94019.0,94018.0,0.002]
[1763388444954,0.01936232,94019.0,94016.0,0.00011236]
[1763388445168,0.01936232,94018.0,94016.0,0.00011236]
[1763388445366,0.9780369,94040.0,94017.0,0.10416178]
[1763388445570,0.01932141,94039.0,94016.0,0.00011236]
[1763388445778,0.01932141,94038.0,94017.0,0.10416178]
[1763388446017,0.01932141,94037.0,94017.0,0.10416178]
[1763388446248,0.01932141,94036.0,94018.0,0.10416178]
[1763388446408,0.01932141,94035.0,94019.0,0.01062741]
[1763388446613,0.01932141,94034.0,94019.0,0.01062741]
[1763388446815,0.0002663,94050.0,94019.0,0.01062741]
[1763388446816,0.01932141,94033.0,94019.0,0.01062741]
[1763388447021,0.01932141,94032.0,94018.0,0.10416178]
[1763388447227,0.00724375,94050.0,94020.0,0.10416178]
[1763388447228,0.01379996,94031.0,94020.0,0.10416178]
[1763388447438,0.00081456,94070.0,94020.0,0.10416178]
[1763388447439,0.02657312,94080.0,94031.0,0.00545917]
[1763388447633,0.00697745,94090.0,94060.0,0.97079315]
[1763388447634,0.0002663,94090.0,94060.0,0.97079315]
[1763388447833,0.0002663,94100.0,94061.0,0.08107932]
[1763388448207,0.0002663,94110.0,94070.0,0.97079315]
[1763388448578,0.97105945,94110.0,94078.0,0.10416178]
[1763388448764,0.97079315,94100.0,94079.0,0.01041618]
[1763388449171,0.323,94099.0,94083.0,0.10416178]
[1763388449419,0.97079315,94100.0,94083.0,0.10416178]
[1763388449616,0.97079315,94100.0,94060.0,0.00973369]
[1763388449617,0.97079315,94093.0,94060.0,0.00973369]
[1763388449838,0.323,94092.0,94076.0,0.10416178]
[1763388450174,0.323,94092.0,94079.0,0.001]
[1763388450376,0.323,94092.0,94080.0,0.01051618]
[1763388450574,0.323,94089.0,94079.0,0.001]
[1763388450777,0.323,94089.0,94080.0,0.10416178]
[1763388451012,0.00070688,94110.0,94080.0,0.10416178]
[1763388451013,0.97150003,94110.0,94080.0,0.10416178]
[1763388451525,0.97123373,94110.0,94096.0,0.10416178]
[1763388451746,0.97123373,94110.0,94097.0,0.01041618]
[1763388451747,0.00044058,94110.0,94097.0,0.01041618]
[1763388452378,0.00044058,94110.0,94100.0,0.00302254]
[1763388453609,0.00044058,94110.0,94101.0,0.04341874]
[1763388454918,0.00044058,94110.0,94101.0,0.03041874]
[1763388455354,0.00044058,94110.0,94102.0,0.00106267]
[1763388455574,0.00044058,94110.0,94103.0,0.01303969]
[1763388456918,0.00044058,94110.0,94104.0,0.04341874]
[1763388459106,0.00044058,94110.0,94109.0,0.04669191]
[1763388459248,0.31544058,94149.0,94120.0,0.00302254]
[1763388459448,0.01927964,94148.0,94136.0,0.10416178]
[1763388459649,0.01927964,94147.0,94136.0,0.11457796]
[1763388459854,0.00013211,94149.0,94136.0,0.11457796]
[1763388460055,0.01927979,94148.0,94136.0,0.11457796]
[1763388460859,0.01927979,94148.0,94111.0,0.10416178]
[1763388461107,0.97079315,94140.0,94127.0,0.10416178]
[1763388461342,0.34227979,94139.0,94127.0,0.10416178]
[1763388461553,0.01927979,94138.0,94127.0,0.10416178]
[1763388461751,0.01927979,94137.0,94120.0,0.001]
[1763388461960,0.01927979,94136.0,94127.0,0.08816178]
[1763388462158,0.32313211,94149.0,94127.0,0.08816178]
[1763388462390,0.01924916,94148.0,94127.0,0.08816178]
[1763388462597,0.32313211,94149.0,94142.0,0.10416178]
[1763388462810,0.32313211,94149.0,94127.0,0.08816178]
[1763388463008,0.323,94139.0,94127.0,0.08816178]
[1763388463415,0.323,94139.0,94136.0,0.001]
[1763388463667,0.323,94139.0,94127.0,0.08816178]
[1763388463883,0.323,94139.0,94111.0,0.10416178]
[1763388464097,0.323,94139.0,94127.0,0.001]
[1763388464306,0.323,94139.0,94126.0,0.10416178]
[1763388464754,0.323,94139.0,94136.0,0.001]
[1763388464963,0.323,94139.0,94138.0,0.00246134]
[1763388465612,0.00013211,94149.0,94138.0,0.00246134]
[1763388465820,0.323,94147.0,94136.0,0.001]
[1763388466135,0.01923833,94146.0,94136.0,0.001]
[1763388466353,0.00013211,94149.0,94126.0,0.10416178]
[1763388466354,0.01923833,94145.0,94126.0,0.10416178]
[1763388466554,0.00013211,94149.0,94127.0,0.01041618]
[1763388466962,0.32313211,94149.0,94127.0,0.01041618]
[1763388467195,0.32313211,94149.0,94141.0,0.10416178]
[1763388467565,0.32313211,94149.0,94127.0,0.01041618]
[1763388467971,0.323,94139.0,94126.0,0.10416178]
[1763388468170,0.323,94139.0,94127.0,0.001]
[1763388469630,0.323,94139.0,94126.0,0.10416178]
[1763388470042,0.32313211,94149.0,94127.0,0.001]
[1763388470263,0.32313211,94149.0,94146.0,0.10416178]
[1763388471039,0.32313211,94149.0,94148.0,0.00218152]
[1763388471040,0.00013211,94149.0,94148.0,0.00218152]
[1763388473478,0.00013211,94149.0,94148.0,0.00324357]
[1763388474137,0.00013211,94149.0,94148.0,0.00424357]
[1763388474613,0.00013211,94149.0,94148.0,0.00324357]
[1763388474827,0.00013211,94149.0,94148.0,0.04866231]
[1763388475089,0.00013211,94149.0,94148.0,0.49888649]
[1763388476277,0.00013211,94149.0,94148.0,0.42488649]
[1763388477416,0.00013211,94149.0,94148.0,0.42788649]
[1763388478212,0.00013211,94149.0,94148.0,0.47130523]
[1763388478433,0.00013211,94149.0,94148.0,0.326]
[1763388478644,0.00013211,94149.0,94148.0,0.37282785]
[1763388479508,0.00013211,94149.0,94148.0,0.40135314]
[1763388480322,0.00013211,94149.0,94148.0,0.37282785]
[1763388481005,0.66249428,94160.0,94148.0,0.003]
[1763388481211,0.34244337,94159.0,94148.0,0.003]
[1763388481440,0.01944337,94158.0,94148.0,0.003]
[1763388481642,0.01944337,94157.0,94148.0,0.003]
[1763388481849,0.323,94159.0,94148.0,0.003]
[1763388481850,0.08941379,94156.0,94148.0,0.003]
[1763388482049,0.00724375,94150.0,94126.0,0.000813]
[1763388482226,0.323,94139.0,94127.0,0.10416178]
[1763388482427,0.01944337,94138.0,94126.0,0.00094511]
[1763388482631,0.01944337,94137.0,94126.0,0.00094511]
[1763388482826,0.01944337,94136.0,94126.0,0.00094511]
[1763388483014,0.01944337,94135.0,94126.0,0.00094511]
[1763388483221,0.323,94139.0,94126.0,0.00094511]
[1763388483222,0.01944337,94134.0,94126.0,0.00094511]
[1763388483552,0.66249428,94122.0,94100.0,0.00302254]
[1763388483785,0.01944337,94121.0,94113.0,0.10416178]
[1763388484032,0.66262666,94122.0,94113.0,0.10416178]
[1763388484033,0.01944337,94120.0,94113.0,0.10416178]
[1763388484252,0.66262666,94122.0,94101.0,0.01071843]
[1763388484253,0.01944337,94119.0,94101.0,0.01071843]
[1763388484456,0.01944337,94118.0,94101.0,0.01071843]
[1763388484586,0.01944337,94117.0,94111.0,0.10416178]
[1763388484789,0.01944337,94116.0,94111.0,0.10416178]
[1763388485001,0.00944337,94115.0,94091.0,0.002]
[1763388485205,0.66249428,94106.0,94091.0,0.002]
[1763388485566,0.66249428,94106.0,94096.0,0.10416178]
[1763388485721,0.0002663,94110.0,94096.0,0.10416178]
[1763388485901,0.323,94105.0,94091.0,0.002]
[1763388486112,0.323,94105.0,94095.0,0.10416178]
[1763388486355,0.323,94156.0,94096.0,0.00819575]
[1763388486581,0.33882009,94129.0,94113.0,0.10416178]
[1763388486784,0.33882009,94129.0,94114.0,0.11182469]
[1763388486988,0.323,94129.0,94121.0,0.000756]
[1763388487472,0.323,94129.0,94121.0,0.00841833]
[1763388487736,0.01535429,94138.0,94121.0,0.000756]
[1763388487931,0.323,94130.0,94121.0,0.000756]
[1763388488452,0.323,94130.0,94121.0,0.0105434]
[1763388488880,0.66276058,94140.0,94121.0,0.0115434]
[1763388489081,0.66249428,94131.0,94122.0,0.01138209]
[1763388489462,0.66249428,94131.0,94115.0,0.01138216]
[1763388489615,0.66249428,94125.0,94121.0,0.001]
[1763388489817,0.01526589,94138.0,94121.0,0.001]
[1763388489818,0.66249428,94131.0,94121.0,0.00144058]
[1763388490221,0.04341874,94129.0,94121.0,0.00144058]
[1763388490401,0.04341874,94127.0,94095.0,0.08986099]
[1763388490605,0.04341874,94125.0,94096.0,0.0091861]
[1763388490807,0.66249428,94110.0,94096.0,0.0091861]
[1763388491012,0.323,94109.0,94096.0,0.0091861]
[1763388491245,0.323,94109.0,94091.0,0.002]
[1763388491246,0.323,94105.0,94091.0,0.002]
[1763388491488,0.323,94105.0,94096.0,0.10416178]
[1763388491710,0.323,94105.0,94091.0,0.002]
[1763388492261,0.66276058,94120.0,94096.0,0.001]
[1763388492464,0.66276058,94130.0,94110.0,0.10416178]
[1763388492671,0.323,94129.0,94110.0,0.10416178]
[1763388493091,0.66249428,94120.0,94097.0,0.01071618]
[1763388493304,0.323,94129.0,94097.0,0.01071618]
[1763388493305,0.66249428,94110.0,94097.0,0.01071618]
[1763388493655,0.323,94109.0,94091.0,0.002]
[1763388493861,0.00724375,94100.0,94091.0,0.002]
[1763388495026,0.00724375,94100.0,94091.0,0.003]
[1763388495230,0.00724375,94100.0,94091.0,0.002]
[1763388495449,0.36641874,94100.0,94099.0,0.00137179]
[1763388496306,0.40306061,94100.0,94099.0,0.00137179]
[1763388496510,0.08006061,94100.0,94099.0,0.00137179]